[Event "2nd Kalyan Dombivali 2019"]
[Site "Kalyan"]
[Date "2019.01.30"]
[Round "3"]
[White "Pednekar Ayush"]
[Black "Kathmale, Sameer"]
[Result "0-1"]
[ECO "A05"]
[WhiteElo "1501"]
[BlackElo "2312"]
[Annotator "ChessBase"]
[PlyCount "58"]
[EventDate "2019.01.28"]
[EventType "swiss"]
[EventRounds "10"]
[EventCountry "IND"]
[SourceTitle "playchess.com"]
[Source "ChessBase"]
[SourceQuality "1"]
[TimeControl "5400+30"]

1. Nf3 {[%emt 0:00:00]} Nf6 {[%emt 0:00:22]} 2. e3 {[%emt 0:00:00]} d5 {[%emt 0:01:26]} 3. b3 {[%emt 0:00:54]} Bf5 {[%emt 0:02:34]} 4. Bb2 {[%emt 0:00:19]} h6 {[%emt 0:00:33]} 5. Be2 {[%emt 0:00:48]} e6 {[%emt 0:00:23]} 6. c4 {[%emt 0:00:44]} c6 {[%emt 0:00:10]} 7. d3 {[%emt 0:04:01]} Nbd7 {[%emt 0:03:24]} 8. Nc3 {[%emt 0:00:48]} Be7 {[%emt 0:02:23]} 9. Rc1 {[%emt 0:00:48]} O-O {[%emt 0:02:37]} 10. O-O {[%emt 0:00:18]} Bh7 {[%emt 0:01:00]} 11. Re1 {[%emt 0:02:02]} e5 {[%emt 0:04:30]} 12. cxd5 {[%emt 0:03:37]} cxd5 {[%emt 0:00:21]} 13. d4 {[%emt 0:07:52]} e4 {[%emt 0:01:04]} 14. Ne5 {[%emt 0:01:04]} Bf5 {[%emt 0:01:13]} 15. Bf1 {[%emt 0:05:43]} a6 {[%emt 0:07:10]} 16. Ne2 {[%emt 0:04:23]} Bd6 {[%emt 0:01:34]} 17. Qd2 {[%emt 0:08:28]} Re8 18. Nxd7 {[%emt 0:00:25]} Bxh2+ {[%emt 0:15:16]} 19. Kh1 {[%emt 0:18:59]} Ng4 {[%emt 0:07:42]} 20. g3 {[%emt 0:01:05]} Qxd7 {[%emt 0:12:00]} 21. Nc3 {[%emt 0:05:02]} Qd6 {[%emt 0:08:14]} 22. Bh3 {[%emt 0:02:59]} Bxg3 {[%emt 0:01:26]} 23. fxg3 {[%emt 0:08:08]} Qxg3 {[%emt 0:00:11]} 24. Bxg4 {[%emt 0:02:21]} Bxg4 {[%emt 0:00:14]} 25. Rf1 {[%emt 0:01:51]} Bf3+ {[%emt 0:00:19]} 26. Rxf3 {[%emt 0:00:08]} exf3 {[%emt 0:00:46]} 27. Rc2 {[%emt 0:05:09]} Re6 {[%emt 0:02:33]} 28. Nxd5 {[%emt 0:02:50]} Qh4+ {[%emt 0:00:34]} 29. Qh2 {[%emt 0:00:41]} Qe4 {[%emt 0:00:17]} 0-1

[Event "2nd Kalyan Dombivali 2019"]
[Site "Kalyan"]
[Date "2019.01.30"]
[Round "3"]
[White "Soni Deepak R"]
[Black "Kadam Om Manish"]
[Result "0-1"]
[ECO "A46"]
[WhiteElo "1425"]
[BlackElo "1944"]
[Annotator "NA RC"]
[PlyCount "58"]
[EventDate "2019.01.28"]
[EventType "swiss"]
[EventRounds "10"]
[EventCountry "IND"]
[SourceTitle "playchess.com"]
[Source "ChessBase"]
[SourceQuality "1"]
[TimeControl "5400+30"]

1. d4 {[%emt 0:00:00]} Nf6 {[%emt 0:00:00]} 2. Nf3 {[%emt 0:00:00]} e6 {[%emt 0:00:00]} 3. Bf4 {[%emt 0:00:00]} c5 {[%emt 0:00:01]} 4. e3 {[%emt 0:00:00]} b6 {[%emt 0:00:05]} 5. Nbd2 {[%emt 0:01:10]} Bb7 {[%emt 0:00:07]} 6. Nc4 {[%emt 0:00:51]} cxd4 {[%emt 0:03:15]} 7. Nxd4 {[%emt 0:18:20]} d5 {[%emt 0:08:09]} 8. Nb5 {[%emt 0:04:49]} dxc4 {[%emt 0:04:42]} 9. Nc7+ {[%emt 0:00:04]} Ke7 {[%emt 0:00:05]} 10. Qxd8+ {[%emt 0:00:11]} Kxd8 {[%emt 0:00:05]} 11. Nxa8 {[%emt 0:00:08]} Nbd7 {[%emt 0:00:04]} 12. Bxc4 {[%emt 0:07:07]} Bxg2 {[%emt 0:01:39]} 13. Rg1 {[%emt 0:02:56]} Bxa8 {[%emt 0:00:15]} 14. O-O-O {[%emt 0:00:42]} Bc6 {[%emt 0:04:35]} 15. b4 {[%emt 0:27:03]} Bf3 {[%emt 0:04:10]} 16. Rd4 {[%emt 0:05:18]} Bxb4 {[%emt 0:15:12]} 17. Rxg7 {[%emt 0:05:42]} Bc5 {[%emt 0:00:48]} 18. Rd2 {[%emt 0:10:51]} Ne4 {[%emt 0:00:33]} 19. Bg5+ {[%emt 0:01:33]} Kc7 {[%emt 0:02:00]} 20. Rd3 {[%emt 0:08:30]} Nd6 {[%emt 0:09:03]} 21. Bb3 {[%emt 0:04:07]} Be4 {[%emt 0:00:06]} 22. Rd1 {[%emt 0:00:53]} Bg6 {[%emt 0:00:06]} 23. Bf4 {[%emt 0:00:24]} e5 {[%emt 0:00:09]} 24. Bg3 {[%emt 0:00:33]} Nf5 {[%emt 0:02:18]} 25. Ba4 {[%emt 0:00:23]} Bd6 {[%emt 0:00:43]} 26. Rxg6 {[%emt 0:00:45]} hxg6 {[%emt 0:00:11]} 27. Bxd7 {[%emt 0:00:05]} Nxg3 {[%emt 0:00:04]} 28. Ba4 {[%emt 0:00:54]} Ne4 {[%emt 0:00:12]} 29. Bb3 {[%emt 0:00:19]} Ba3+ {[%emt 0:00:04]} 0-1

[Event "2nd Kalyan Dombivali 2019"]
[Site "Kalyan"]
[Date "2019.01.30"]
[Round "3"]
[White "Agarwal Shyam"]
[Black "Vijay, Anand M."]
[Result "0-1"]
[ECO "B27"]
[WhiteElo "1409"]
[BlackElo "1841"]
[Annotator "NA RC"]
[PlyCount "46"]
[EventDate "2019.01.28"]
[EventType "swiss"]
[EventRounds "10"]
[EventCountry "IND"]
[SourceTitle "playchess.com"]
[Source "ChessBase"]
[SourceQuality "1"]
[TimeControl "5400+30"]

1. e4 {[%emt 0:00:00]} c5 {[%emt 0:07:15]} 2. Nf3 {[%emt 0:00:00]} g6 {[%emt 0:00:07]} 3. d4 {[%emt 0:00:00]} cxd4 {[%emt 0:00:06]} 4. Nxd4 {[%emt 0:00:12]} Bg7 {[%emt 0:00:05]} 5. Nc3 {[%emt 0:00:25]} Nc6 {[%emt 0:00:07]} 6. Be3 {[%emt 0:00:29]} Nf6 {[%emt 0:00:07]} 7. Be2 {[%emt 0:01:19]} O-O {[%emt 0:00:37]} 8. O-O {[%emt 0:01:08]} d5 {[%emt 0:00:56]} 9. exd5 {[%emt 0:06:43]} Nb4 {[%emt 0:00:05]} 10. Qd2 {[%emt 0:03:26]} Nbxd5 {[%emt 0:02:57]} 11. Nxd5 {[%emt 0:01:59]} Nxd5 {[%emt 0:00:24]} 12. Bh6 {[%emt 0:05:19]} Bxh6 {[%emt 0:02:02]} 13. Qxh6 {[%emt 0:01:14]} Qb6 {[%emt 0:00:05]} 14. Nb3 {[%emt 0:04:47]} Bf5 {[%emt 0:05:29]} 15. c3 {[%emt 0:03:22]} e5 {[%emt 0:00:30]} 16. Qh4 {[%emt 0:08:39]} Nf4 {[%emt 0:03:01]} 17. Bf3 {[%emt 0:03:14]} Rfe8 {[%emt 0:01:50]} 18. Rfe1 {[%emt 0:02:56]} a5 {[%emt 0:04:01]} 19. Be4 {[%emt 0:06:54]} Bxe4 {[%emt 0:02:25]} 20. Rxe4 {[%emt 0:01:26]} a4 {[%emt 0:00:15]} 21. Nd2 {[%emt 0:06:15]} Qxb2 {[%emt 0:01:14]} 22. Rd1 {[%emt 0:00:16]} Qc2 {[%emt 0:04:01]} 23. Ree1 {[%emt 0:01:26]} Rad8 {[%emt 0:03:10]} 0-1

[Event "2nd Kalyan Dombivali 2019"]
[Site "Kalyan"]
[Date "2019.01.30"]
[Round "3"]
[White "Virle Kimaya"]
[Black "Nehete Akshay S"]
[Result "0-1"]
[ECO "E81"]
[WhiteElo "1391"]
[BlackElo "1788"]
[Annotator "NA RC"]
[PlyCount "56"]
[EventDate "2019.01.28"]
[EventType "swiss"]
[EventRounds "10"]
[EventCountry "IND"]
[SourceTitle "playchess.com"]
[Source "ChessBase"]
[SourceQuality "1"]
[TimeControl "5400+30"]

1. d4 {[%emt 0:00:00]} Nf6 {[%emt 0:00:00]} 2. c4 {[%emt 0:00:00]} g6 {[%emt 0:00:00]} 3. Nc3 {[%emt 0:00:00]} Bg7 {[%emt 0:00:03]} 4. e4 {[%emt 0:00:00]} d6 {[%emt 0:00:03]} 5. f3 {[%emt 0:00:03]} O-O {[%emt 0:04:39]} 6. Be3 {[%emt 0:00:19]} c5 {[%emt 0:05:52]} 7. dxc5 {[%emt 0:07:47]} dxc5 {[%emt 0:00:09]} 8. Qxd8 {[%emt 0:00:23]} Rxd8 {[%emt 0:00:04]} 9. Bxc5 {[%emt 0:00:06]} Nc6 {[%emt 0:00:11]} 10. Nd5 {[%emt 0:01:03]} Nxd5 {[%emt 0:10:00]} 11. cxd5 {[%emt 0:02:33]} Bxb2 {[%emt 0:00:29]} 12. Rb1 {[%emt 0:01:20]} Bc3+ {[%emt 0:00:43]} 13. Kf2 {[%emt 0:01:53]} b6 {[%emt 0:14:10]} 14. Rc1 {[%emt 0:06:50]} Bb2 {[%emt 0:12:37]} 15. Rc2 {[%emt 0:01:42]} Bf6 {[%emt 0:02:42]} 16. Be3 {[%emt 0:07:53]} Nb4 {[%emt 0:05:55]} 17. Rc7 {[%emt 0:42:55]} Nxa2 {[%emt 0:00:55]} 18. Bd2 {[%emt 0:06:26]} a5 {[%emt 0:05:03]} 19. Bc4 {[%emt 0:05:19]} Nb4 {[%emt 0:03:08]} 20. Be3 {[%emt 0:01:45]} Rb8 {[%emt 0:01:16]} 21. Ne2 {[%emt 0:09:23]} b5 {[%emt 0:12:16]} 22. Ba7 {[%emt 0:01:23]} Ra8 {[%emt 0:01:25]} 23. Bxb5 {[%emt 0:00:18]} Be5 {[%emt 0:00:36]} 24. Rxe7 {[%emt 0:00:27]} Bd6 {[%emt 0:00:05]} 25. Bb6 {[%emt 0:01:24]} Bxe7 {[%emt 0:00:19]} 26. Bxd8 {[%emt 0:00:08]} Bxd8 {[%emt 0:00:05]} 27. Rb1 {[%emt 0:01:06]} Ba6 {[%emt 0:01:12]} 28. Bc6 {[%emt 0:00:44]} Rb8 {[%emt 0:00:35]} 0-1

[Event "2nd Kalyan Dombivali 2019"]
[Site "Kalyan"]
[Date "2019.01.30"]
[Round "3"]
[White "Rajveer Pinkesh Nahar"]
[Black "Shreyas Ghadi"]
[Result "0-1"]
[ECO "C07"]
[WhiteElo "1389"]
[BlackElo "1653"]
[Annotator "NA RC"]
[PlyCount "108"]
[EventDate "2019.01.28"]
[EventType "swiss"]
[EventRounds "10"]
[EventCountry "IND"]
[SourceTitle "playchess.com"]
[Source "ChessBase"]
[SourceQuality "1"]
[TimeControl "5400+30"]

1. e4 {[%emt 0:00:00]} e6 {[%emt 0:00:00]} 2. d4 {[%emt 0:00:00]} d5 {[%emt 0:00:00]} 3. Nd2 {[%emt 0:00:07]} c5 {[%emt 0:00:00]} 4. exd5 {[%emt 0:00:06]} Qxd5 {[%emt 0:00:00]} 5. Ngf3 {[%emt 0:00:51]} cxd4 {[%emt 0:01:06]} 6. Bc4 {[%emt 0:00:31]} Qd8 {[%emt 0:00:10]} 7. Nb3 {[%emt 0:00:36]} Nc6 {[%emt 0:04:31]} 8. Nfxd4 {[%emt 0:00:35]} Nxd4 {[%emt 0:00:56]} 9. Qxd4 {[%emt 0:01:38]} Qxd4 {[%emt 0:00:38]} 10. Nxd4 {[%emt 0:00:07]} a6 {[%emt 0:00:16]} 11. a4 {[%emt 0:00:44]} Nf6 {[%emt 0:01:24]} 12. a5 {[%emt 0:00:31]} Be7 {[%emt 0:01:06]} 13. O-O {[%emt 0:01:21]} O-O {[%emt 0:00:26]} 14. Be3 {[%emt 0:06:25]} Bd7 {[%emt 0:02:54]} 15. Rad1 {[%emt 0:01:04]} Rac8 {[%emt 0:00:37]} 16. Bd3 {[%emt 0:02:58]} Rfd8 {[%emt 0:18:30]} 17. Nb3 {[%emt 0:01:59]} Nd5 {[%emt 0:03:14]} 18. Bd4 {[%emt 0:00:58]} Bc6 {[%emt 0:01:20]} 19. g3 {[%emt 0:09:45]} Nb4 {[%emt 0:02:24]} 20. Bb6 {[%emt 0:01:23]} Re8 {[%emt 0:05:47]} 21. Rfe1 {[%emt 0:08:26]} Ba4 {[%emt 0:05:42]} 22. Re2 {[%emt 0:05:09]} Nxd3 {[%emt 0:00:22]} 23. Rxd3 {[%emt 0:01:10]} Bb5 {[%emt 0:00:03]} 24. Rdd2 {[%emt 0:00:37]} Bxe2 {[%emt 0:00:07]} 25. Rxe2 {[%emt 0:00:04]} Bd8 {[%emt 0:00:33]} 26. Bc5 {[%emt 0:00:49]} Bxa5 {[%emt 0:01:14]} 27. Nxa5 {[%emt 0:00:19]} Rxc5 {[%emt 0:00:01]} 28. Nxb7 {[%emt 0:00:09]} Rd5 {[%emt 0:01:34]} 29. c4 {[%emt 0:00:23]} Rd1+ {[%emt 0:00:24]} 30. Kg2 {[%emt 0:00:12]} Rc1 {[%emt 0:04:24]} 31. b3 {[%emt 0:00:51]} Rc3 {[%emt 0:01:30]} 32. Rb2 {[%emt 0:01:44]} Rb8 {[%emt 0:00:05]} 33. Nc5 {[%emt 0:00:05]} Rxc4 {[%emt 0:02:08]} 34. Nxa6 {[%emt 0:00:46]} Rb6 {[%emt 0:00:02]} 35. Rd2 {[%emt 0:03:12]} Rc8 {[%emt 0:00:04]} 36. Nc5 {[%emt 0:00:39]} Rb5 {[%emt 0:00:14]} 37. Nd3 {[%emt 0:01:39]} Rxb3 {[%emt 0:00:17]} 38. Ne5 {[%emt 0:00:49]} f6 {[%emt 0:00:55]} 39. Ng4 {[%emt 0:00:11]} Rc7 {[%emt 0:00:45]} 40. Rd6 {[%emt 0:00:31]} Kf7 {[%emt 0:00:07]} 41. Ne3 {[%emt 0:00:23]} Rb2 {[%emt 0:00:37]} 42. Ng4 {[%emt 0:01:08]} Rcc2 {[%emt 0:00:21]} 43. Rd7+ {[%emt 0:01:55]} Kg6 {[%emt 0:00:01]} 44. Re7 {[%emt 0:00:43]} h5 {[%emt 0:00:10]} 45. Ne3 {[%emt 0:00:22]} Rxf2+ {[%emt 0:00:05]} 46. Kg1 {[%emt 0:00:05]} Rfe2 {[%emt 0:00:14]} 47. Nf1 {[%emt 0:00:32]} e5 {[%emt 0:00:17]} 48. h4 {[%emt 0:02:11]} Rb1 {[%emt 0:00:49]} 49. Rc7 {[%emt 0:00:17]} Ree1 {[%emt 0:00:02]} 50. Rc2 {[%emt 0:00:10]} Rxf1+ {[%emt 0:00:05]} 51. Kh2 {[%emt 0:01:32]} Kf5 {[%emt 0:00:28]} 52. Kh3 {[%emt 0:00:15]} Rh1+ {[%emt 0:00:09]} 53. Kg2 {[%emt 0:00:05]} Rbg1+ {[%emt 0:00:08]} 54. Kf3 {[%emt 0:00:03]} Rh3 {[%emt 0:00:18]} 0-1

[Event "2nd Kalyan Dombivali 2019"]
[Site "Kalyan"]
[Date "2019.01.30"]
[Round "3"]
[White "Yadav Aakashkumar"]
[Black "Chhabra Aakash"]
[Result "0-1"]
[ECO "A05"]
[WhiteElo "1381"]
[BlackElo "1619"]
[Annotator "NA RC"]
[PlyCount "72"]
[EventDate "2019.01.28"]
[EventType "swiss"]
[EventRounds "10"]
[EventCountry "IND"]
[SourceTitle "playchess.com"]
[Source "ChessBase"]
[SourceQuality "1"]
[TimeControl "5400+30"]

1. Nf3 {[%emt 0:00:35]} Nf6 {[%emt 0:00:00]} 2. c4 {[%emt 0:05:35]} e6 {[%emt 0:00:00]} 3. d4 {[%emt 0:14:01]} d5 {[%emt 0:00:02]} 4. g3 {[%emt 0:08:44]} c6 {[%emt 0:00:11]} 5. Bg2 {[%emt 0:01:43]} Bd6 {[%emt 0:00:12]} 6. O-O {[%emt 0:00:53]} O-O {[%emt 0:00:07]} 7. b3 {[%emt 0:00:35]} Nbd7 {[%emt 0:00:24]} 8. Bb2 {[%emt 0:05:31]} b6 {[%emt 0:00:42]} 9. Ne5 {[%emt 0:01:54]} Bb7 {[%emt 0:01:02]} 10. Nd2 {[%emt 0:07:53]} c5 {[%emt 0:01:46]} 11. Nxd7 {[%emt 0:01:01]} Nxd7 {[%emt 0:02:35]} 12. e4 {[%emt 0:00:24]} cxd4 {[%emt 0:02:40]} 13. exd5 {[%emt 0:00:34]} e5 {[%emt 0:01:18]} 14. Ne4 {[%emt 0:01:19]} Nc5 {[%emt 0:01:41]} 15. Nxd6 Qxd6 {[%emt 0:00:49]} 16. f4 {[%emt 0:02:08]} f6 {[%emt 0:01:42]} 17. Ba3 {[%emt 0:06:31]} a5 {[%emt 0:02:47]} 18. Kh1 {[%emt 0:02:54]} Rae8 {[%emt 0:01:53]} 19. Rc1 {[%emt 0:01:09]} Bc8 {[%emt 0:02:33]} 20. fxe5 {[%emt 0:02:34]} fxe5 {[%emt 0:00:11]} 21. Be4 {[%emt 0:00:31]} Qh6 {[%emt 0:05:10]} 22. Qe2 {[%emt 0:03:24]} Bh3 {[%emt 0:04:46]} 23. Rxf8+ {[%emt 0:00:25]} Rxf8 {[%emt 0:00:35]} 24. Bg2 {[%emt 0:00:23]} Bxg2+ {[%emt 0:02:31]} 25. Kxg2 {[%emt 0:00:54]} e4 {[%emt 0:04:36]} 26. Bxc5 {[%emt 0:01:39]} bxc5 {[%emt 0:01:21]} 27. Rf1 {[%emt 0:00:44]} Rxf1 {[%emt 0:01:09]} 28. Qxf1 {[%emt 0:00:48]} Qd2+ {[%emt 0:02:07]} 29. Kh3 {[%emt 0:00:40]} Qg5 {[%emt 0:11:30]} 30. Qe1 {[%emt 0:01:20]} Qh5+ {[%emt 0:07:53]} 31. Kg2 {[%emt 0:00:19]} Qf3+ {[%emt 0:00:12]} 32. Kh3 {[%emt 0:00:16]} e3 {[%emt 0:06:26]} 33. Qxa5 {[%emt 0:00:15]} e2 {[%emt 0:00:32]} 34. Qa8+ {[%emt 0:01:48]} Qf8 {[%emt 0:00:25]} 35. Qa5 {[%emt 0:00:02]} Qf1+ {[%emt 0:00:11]} 36. Kh4 {[%emt 0:00:13]} e1=Q {[%emt 0:00:25]} 0-1

[Event "2nd Kalyan Dombivali 2019"]
[Site "Kalyan"]
[Date "2019.01.30"]
[Round "3"]
[White "Vaval Aaditi"]
[Black "Akshit Jha"]
[Result "0-1"]
[ECO "C02"]
[WhiteElo "1367"]
[BlackElo "1604"]
[Annotator "NA RC"]
[PlyCount "38"]
[EventDate "2019.01.28"]
[EventType "swiss"]
[EventRounds "10"]
[EventCountry "IND"]
[SourceTitle "playchess.com"]
[Source "ChessBase"]
[SourceQuality "1"]
[TimeControl "5400+30"]

1. e4 {[%emt 0:00:00]} e6 {[%emt 0:00:00]} 2. d4 {[%emt 0:00:00]} d5 {[%emt 0:00:00]} 3. e5 {[%emt 0:00:00]} c5 {[%emt 0:00:00]} 4. c3 {[%emt 0:00:00]} Qb6 {[%emt 0:00:00]} 5. Nf3 {[%emt 0:00:00]} Nc6 {[%emt 0:00:00]} 6. a3 {[%emt 0:00:03]} c4 {[%emt 0:00:00]} 7. Be2 {[%emt 0:01:26]} Na5 {[%emt 0:00:00]} 8. Nbd2 {[%emt 0:00:09]} Bd7 {[%emt 0:00:00]} 9. O-O {[%emt 0:01:57]} Ne7 {[%emt 0:00:03]} 10. Rb1 {[%emt 0:01:49]} Qc7 {[%emt 0:00:05]} 11. Qc2 {[%emt 0:12:01]} Nc8 {[%emt 0:01:41]} 12. Bd1 {[%emt 0:02:21]} Nb6 {[%emt 0:01:09]} 13. b4 {[%emt 0:03:06]} cxb3 {[%emt 0:00:08]} 14. Nxb3 {[%emt 0:00:01]} Nac4 {[%emt 0:00:19]} 15. Ra1 {[%emt 0:03:19]} Rc8 {[%emt 0:01:06]} 16. Nbd2 {[%emt 0:10:42]} Na4 {[%emt 0:06:44]} 17. Qb3 {[%emt 0:07:34]} Na5 {[%emt 0:01:01]} 18. Qc2 {[%emt 0:06:13]} Nxc3 {[%emt 0:01:30]} 19. Kh1 {[%emt 0:01:45]} Ba4 {[%emt 0:00:39]} 0-1

[Event "2nd Kalyan Dombivali 2019"]
[Site "Kalyan"]
[Date "2019.01.31"]
[Round "4"]
[White "Snehal, Bhosale"]
[Black "Ankur Mahesh Gokhale"]
[Result "1-0"]
[ECO "A52"]
[WhiteElo "2135"]
[BlackElo "1628"]
[Annotator "RC"]
[PlyCount "133"]
[EventDate "2019.01.28"]
[EventType "swiss"]
[EventRounds "10"]
[EventCountry "IND"]
[SourceTitle "playchess.com"]
[Source "ChessBase"]
[SourceQuality "1"]
[TimeControl "5400+30"]

1. d4 {[%emt 0:04:54]} Nf6 {[%emt 0:00:00]} 2. c4 {[%emt 0:00:20]} e5 {[%emt 0:00:00]} 3. dxe5 {[%emt 0:00:49]} Ng4 {[%emt 0:00:00]} 4. Nf3 {[%emt 0:00:06]} Bc5 {[%emt 0:00:06]} 5. e3 {[%emt 0:00:04]} Nc6 {[%emt 0:00:06]} 6. Nc3 {[%emt 0:00:18]} O-O {[%emt 0:00:16]} 7. Be2 {[%emt 0:00:19]} Re8 {[%emt 0:00:10]} 8. O-O {[%emt 0:00:17]} Ngxe5 {[%emt 0:00:06]} 9. Nxe5 {[%emt 0:00:14]} Nxe5 {[%emt 0:00:07]} 10. b3 {[%emt 0:00:09]} a5 {[%emt 0:00:23]} 11. Bb2 {[%emt 0:00:08]} Ra6 {[%emt 0:00:17]} 12. Qd5 {[%emt 0:00:19]} Ba7 {[%emt 0:01:06]} 13. Ne4 {[%emt 0:01:20]} Rh6 {[%emt 0:00:18]} 14. Bxe5 {[%emt 0:01:28]} c6 {[%emt 0:00:22]} 15. Bf6 {[%emt 0:00:12]} gxf6 {[%emt 0:00:10]} 16. Qf5 {[%emt 0:00:25]} Qe7 {[%emt 0:18:42]} 17. Qf4 {[%emt 0:10:23]} Rg6 {[%emt 0:01:58]} 18. Bd3 {[%emt 0:04:22]} f5 {[%emt 0:18:12]} 19. Ng3 {[%emt 0:02:26]} d5 {[%emt 0:02:18]} 20. cxd5 {[%emt 0:10:12]} cxd5 {[%emt 0:02:18]} 21. Nxf5 {[%emt 0:03:17]} Bxf5 {[%emt 0:04:27]} 22. Bxf5 {[%emt 0:08:34]} Bb8 {[%emt 0:00:32]} 23. Qf3 {[%emt 0:01:07]} Qe5 {[%emt 0:07:07]} 24. g3 {[%emt 0:00:55]} Rf6 {[%emt 0:03:51]} 25. Qg4+ {[%emt 0:01:26]} Kh8 {[%emt 0:00:37]} 26. Bd3 {[%emt 0:01:00]} Rg8 {[%emt 0:17:33]} 27. Qh3 {[%emt 0:02:02]} h6 {[%emt 0:01:17]} 28. Rac1 {[%emt 0:05:32]} Ba7 {[%emt 0:07:35]} 29. Kg2 {[%emt 0:06:07]} Re8 {[%emt 0:07:31]} 30. Rc8 {[%emt 0:01:33]} Rxc8 {[%emt 0:02:03]} 31. Qxc8+ {[%emt 0:00:11]} Kg7 {[%emt 0:00:18]} 32. Qg4+ {[%emt 0:11:56]} Qg5 {[%emt 0:03:13]} 33. Qxg5+ {[%emt 0:03:30]} hxg5 {[%emt 0:00:04]} 34. Rc1 {[%emt 0:00:18]} Rc6 {[%emt 0:00:29]} 35. Rxc6 {[%emt 0:00:09]} bxc6 {[%emt 0:00:05]} 36. Kf3 {[%emt 0:00:14]} Bb6 {[%emt 0:02:01]} 37. Kg4 {[%emt 0:00:00]} Bd8 {[%emt 0:00:47]} 38. Kf5 {[%emt 0:01:00]} Be7 {[%emt 0:00:35]} 39. Ba6 {[%emt 0:02:51]} Bc5 {[%emt 0:00:48]} 40. Kxg5 {[%emt 0:01:02]} d4 {[%emt 0:00:12]} 41. exd4 {[%emt 0:01:34]} Bxd4 {[%emt 0:00:05]} 42. f4 {[%emt 0:00:11]} Bg1 {[%emt 0:00:08]} 43. h4 {[%emt 0:01:17]} Bf2 {[%emt 0:00:11]} 44. g4 {[%emt 0:00:49]} f6+ {[%emt 0:00:35]} 45. Kh5 {[%emt 0:00:07]} Be3 {[%emt 0:00:34]} 46. f5 {[%emt 0:00:18]} Bd2 {[%emt 0:00:10]} 47. g5 {[%emt 0:00:09]} c5 {[%emt 0:00:08]} 48. Bb5 {[%emt 0:04:10]} Bc1 {[%emt 0:00:14]} 49. Be8 {[%emt 0:00:38]} Be3 {[%emt 0:00:21]} 50. Bg6 {[%emt 0:02:39]} Bc1 {[%emt 0:00:20]} 51. Kg4 {[%emt 0:00:31]} Bd2 {[%emt 0:00:08]} 52. gxf6+ {[%emt 0:00:58]} Kxf6 {[%emt 0:00:08]} 53. Kf3 {[%emt 0:00:05]} Ke5 {[%emt 0:00:17]} 54. Ke2 {[%emt 0:00:11]} Bf4 {[%emt 0:01:59]} 55. Kd3 {[%emt 0:00:35]} Kd5 {[%emt 0:00:54]} 56. Bf7+ {[%emt 0:01:06]} Ke5 {[%emt 0:00:13]} 57. Be6 {[%emt 0:00:05]} Bc1 {[%emt 0:00:14]} 58. Kc4 {[%emt 0:00:39]} Ba3 {[%emt 0:00:06]} 59. h5 {[%emt 0:00:43]} Bb4 {[%emt 0:00:18]} 60. h6 {[%emt 0:00:16]} Kf6 {[%emt 0:00:03]} 61. h7 {[%emt 0:00:17]} Kg7 {[%emt 0:00:04]} 62. Bg8 {[%emt 0:00:19]} Bd2 {[%emt 0:00:34]} 63. f6+ {[%emt 0:00:34]} Kh8 {[%emt 0:00:05]} 64. f7 {[%emt 0:00:44]} Bh6 {[%emt 0:00:03]} 65. Kb5 {[%emt 0:00:21]} Bf8 {[%emt 0:00:35]} 66. Kxa5 {[%emt 0:00:11]} Kg7 {[%emt 0:00:13]} 67. Kb5 {[%emt 0:00:41]} 1-0

[Event "2nd Kalyan Dombivali 2019"]
[Site "Kalyan"]
[Date "2019.01.31"]
[Round "4"]
[White "Satkar, Chirag"]
[Black "Shivshankar Iyer S"]
[Result "1-0"]
[ECO "D35"]
[WhiteElo "2071"]
[BlackElo "1619"]
[Annotator "NA RC"]
[PlyCount "84"]
[EventDate "2019.01.28"]
[EventType "swiss"]
[EventRounds "10"]
[EventCountry "IND"]
[SourceTitle "playchess.com"]
[Source "ChessBase"]
[SourceQuality "1"]
[TimeControl "5400+30"]

{[%evp 20,83,3,0,0,0,5,6,5,0,8,-20,0,-23,-11,32767,32767,32767,32767,-76,-59,-73,-70,-101,-71,-98,32767,-64,-50,-60,-56,-70,220,108,313,319,320,344,636,740,701,737,966,1026,1102,532,519,493,535,499,558,472,559,593,527,576,674,749,687,760,862,971,29999,1072,1054,1637]} 1. d4 {[%emt 0:06:11]} d5 {[%emt 0:00:00]} 2. c4 {[%emt 0:00:44]} e6 {[%emt 0:00:00]} 3. Nc3 {[%emt 0:00:40]} Nf6 {[%emt 0:00:00]} 4. cxd5 {[%emt 0:00:23]} exd5 {[%emt 0:00:07]} 5. Bg5 {[%emt 0:00:16]} Be7 {[%emt 0:00:24]} 6. e3 {[%emt 0:01:22]} O-O {[%emt 0:03:42]} 7. Qc2 {[%emt 0:06:47]} b6 {[%emt 0:02:18]} 8. Bd3 {[%emt 0:03:50]} h6 {[%emt 0:00:41]} 9. Bh4 {[%emt 0:00:37]} c5 {[%emt 0:04:02]} 10. Nge2 {[%emt 0:14:16]} Nc6 {[%emt 0:07:33]} 11. a3 {[%emt 0:01:38]} c4 {[%emt 0:07:44]} 12. Bf5 {[%emt 0:00:27]} a6 {[%emt 0:01:08]} 13. Bxc8 {[%emt 0:07:14]} Rxc8 {[%emt 0:00:05]} 14. Qf5 {[%emt 0:00:36]} Qd7 $1 {[%emt 0:03:07]} 15. Qf3 {[%emt 0:14:25]} Rfd8 {[%emt 0:00:06]} 16. O-O {[%emt 0:00:26]} g5 {[%emt 0:15:04]} 17. Bg3 {[%emt 0:00:48]} Qe6 {[%emt 0:00:17]} 18. h3 {[%emt 0:01:55]} h5 {[%emt 0:05:12]} 19. Be5 {[%emt 0:04:55]} (19. Bh2 $14 {keeps the upper hand.}) 19... Nxe5 {[%emt 0:02:30]} 20. dxe5 {[%emt 0:00:02]} Qxe5 {[%emt 0:00:08]} 21. Rfd1 {[%emt 0:02:51]} Bd6 {[%emt 0:08:52]} 22. Ng3 {[%emt 0:09:00]} h4 {[%emt 0:05:21]} (22... g4 $17 23. Qf5 Kf8) 23. Nf5 {[%emt 0:03:48]} ({Better is} 23. Nxd5 $11 Nxd5 24. Rxd5 Qxb2 {[%mdl 64] Double Attack} 25. Rxg5+ Kf8 26. Rf1) 23... Bf8 {[%emt 0:02:13]} 24. Rac1 {[%emt 0:02:08]} b5 {[%emt 0:02:50]} 25. Rc2 {[%emt 0:02:09]} Ne4 $2 {[%emt 0:03:55]} (25... Rd7 $15 {stays ahead.}) 26. Qg4 {[%emt 0:01:13]} f6 $2 {[%emt 0:04:46]} (26... Bg7 $16 {keeps fighting.}) 27. f4 {[%emt 0:00:40]} Qe8 {[%emt 0:08:09]} 28. fxg5 {[%emt 0:02:33]} ({Not} 28. Nxd5 Rc6 $18) 28... Qg6 $2 {[%emt 0:02:25]} (28... Nxg5 29. Nxd5 (29. Rxd5 Bc5 $18) (29. Qxh4 Rc7 $18) 29... Qe6) 29. Nxd5 {[%emt 0:00:51]} Re8 {[%emt 0:01:41]} 30. Nxh4 {[%emt 0:02:13]} Qxg5 {[%emt 0:01:29] [#]} 31. Nxf6+ $1 {[%emt 0:00:16] Double Attack, Pin} Kf7 {[%emt 0:01:42]} 32. Qxg5 {[%emt 0:01:07]} ({Weaker is} 32. Nxe4 Qxg4 33. Rf1+ (33. hxg4 Rxe4 34. Rf2+ Ke6 $16) 33... Kg7 $16) 32... Nxg5 {[%emt 0:00:05]} 33. Nxe8 {[%emt 0:00:04]} Rxe8 {[%emt 0:01:21]} 34. Rd7+ {[%emt 0:01:18]} Ke6 {[%emt 0:01:17]} 35. Ra7 {[%emt 0:00:56]} Bc5 {[%emt 0:00:30]} 36. Rxa6+ {[%emt 0:00:10]} Kd5 {[%emt 0:00:08]} 37. Nf5 {[%emt 0:04:26]} Re5 {[%emt 0:00:13]} 38. g4 {[%emt 0:02:00]} Bxe3+ {[%emt 0:01:24]} 39. Kg2 {[%emt 0:00:39]} Ne6 {[%emt 0:03:04]} 40. Rd6+ {[%emt 0:01:29]} Kc5 {[%emt 0:00:56]} 41. Rxe6 {[%emt 0:00:15]} (41. b4# $142) 41... Rxe6 {[%emt 0:01:07]} 42. Re2 $18 {[%emt 0:00:09]} Kd5 1-0